fUST/lending_fUST_20250614
["ID","MTS","AMOUNT","RATE_DAILY","PERIOD"]
[365769161,1749897043055,-426.976756,0.0002397,7]
[365769162,1749897043064,-426.976756,0.0002397,7]
[365769163,1749897043073,-325.950769,0.0002397,7]
[365769164,1749897043083,-325.950769,0.0002397,7]
[365769165,1749897043092,-237.722832,0.0002397,7]
[365769166,1749897043102,-237.722832,0.0002397,7]
[365769167,1749897043111,-151.0,0.0002397,7]
[365769168,1749897043120,-151.0,0.0002397,7]
[365769169,1749897043129,-151.0,0.0002397,7]
[365769170,1749897043138,-151.0,0.0002397,7]
[365769171,1749897043147,-151.0,0.0002397,7]
[365769173,1749897043157,-151.0,0.0002397,7]
[365769174,1749897043167,-151.0,0.0002397,7]
[365769176,1749897043176,-151.0,0.0002397,7]
[365769177,1749897043185,-150.0,0.00023971,2]
[365769179,1749897043195,-150.0,0.00023971,2]
[365769180,1749897043205,-152.552,0.00023971,2]
[365769181,1749897043214,-250.0,0.00023971,2]
[365769182,1749897043224,-249.539,0.00023971,2]
[365769184,1749897043232,-258.421,0.00023971,2]
[365769186,1749897043242,-215.773,0.00023971,2]
[365769187,1749897043251,-215.0738,0.00023971,2]
[365769188,1749897043261,-150.0,0.00023973,2]
[365769189,1749897043270,-3000.0,0.0002398,2]
[365769190,1749897043279,-162.623748,0.0002398,7]
[365769194,1749897043370,-162.623748,0.0002398,7]
[365769195,1749897043380,-259.184029,0.00023986,7]
[365769196,1749897043390,-259.184029,0.00023986,7]
[365769197,1749897043399,-3000.0,0.0002399,2]
[365769198,1749897043408,-162.883414,0.00023999,7]
[365769199,1749897043417,-162.883414,0.00023999,7]
[365769200,1749897043427,-5433.76761111,0.00024,2]
[365769207,1749897046736,-380.09178866,0.00022466,2]
[365769208,1749897046746,-159.92061473,0.00022541,2]
[365769209,1749897046756,-159.92061473,0.00023313,2]
[365769210,1749897046766,-2160.0,0.00023776,2]
[365769211,1749897046776,-653.0,0.00023776,2]
[365769212,1749897046785,-183.38125239,0.00023776,2]
[365769213,1749897046794,-686.659296,0.000239,7]
[365769214,1749897046804,-686.659296,0.0002392,7]
[365769215,1749897046814,-702.57012187,0.00024,2]
[365769242,1749897959533,340.939509,0.00013699,2]
[365769245,1749898025091,-340.939509,0.00020187,2]
[365769246,1749898025113,-168.0,0.00021347,2]
[365769247,1749898025133,-300.0,0.00021364,2]
[365769248,1749898025153,-111.3326506,0.00021364,2]
[365769249,1749898036076,-188.6673494,0.00021364,2]
[365769250,1749898036097,-54.98403568,0.00021365,2]
[365769251,1749898146126,-150.0,0.00019264,2]
[365769252,1749898146164,-203.2476799,0.00020703,2]
[365769253,1749898146186,-1145.01596432,0.00021365,2]
[365769254,1749898146206,-300.0,0.00021365,2]
[365769255,1749898146228,-406.0162744,0.00021366,4]
[365769256,1749898146249,-66.25406741,0.00021366,4]
[365769282,1749898232235,-227.21547348,0.00021366,4]
[365769283,1749898232245,-1418.67,0.00021481,2]
[365769284,1749898232255,-182.0,0.0002159,2]
[365769285,1749898232264,-300.0,0.0002178,2]
[365769286,1749898232273,-231.32013978,0.00021781,4]
[365769353,1749898238241,-228.67986022,0.00021781,4]
[365769354,1749898238253,-440.0,0.00021781,4]
[365769355,1749898238262,-440.0,0.00021781,4]
[365769356,1749898238271,-460.0,0.00021781,4]
[365769357,1749898238281,-460.0,0.00021781,4]
[365769358,1749898238290,-473.13,0.00021781,4]
[365769359,1749898238300,-524.21,0.00021781,4]
[365769360,1749898238309,-460.0,0.00021781,4]
[365769361,1749898238318,-460.0,0.00021781,2]
[365769362,1749898238328,-460.0,0.00021781,4]
[365769363,1749898238337,-460.0,0.00021781,4]
[365769364,1749898238346,-460.0,0.00021781,4]
[365769366,1749898238356,-460.0,0.00021781,4]
[365769368,1749898238366,-460.0,0.00021781,4]
[365769369,1749898238375,-460.0,0.00021781,4]
[365769370,1749898238384,-757.44,0.00021781,4]
[365769371,1749898238393,-1438.07,0.00021781,4]
[365769372,1749898238403,-460.0,0.00021781,4]
[365769373,1749898238412,-460.0,0.00021781,4]
[365769374,1749898238421,-460.0,0.00021781,4]
[365769375,1749898238430,-460.0,0.00021781,4]
[365769376,1749898238439,-460.0,0.00021781,4]
[365769377,1749898238450,-460.0,0.00021781,4]
[365769378,1749898238459,-460.0,0.00021781,4]
[365769379,1749898238468,-500.0,0.00021781,4]
[365769380,1749898238478,-1789.95570821,0.00021781,2]
[365769382,1749898238487,-162.629,0.00021789,2]
[365769383,1749898238496,-500.0,0.00021789,4]
[365769385,1749898238505,-2803.3482435,0.00021789,2]
[365769386,1749898238542,-22096.6517565,0.00021789,2]
[365769387,1749898238553,-835.41710878,0.00021841,2]
[365769388,1749898238563,-213.28201367,0.00021841,2]
[365769389,1749898238573,-424.40141186,0.00021841,2]
[365769390,1749898238582,-12533.30537164,0.00021841,2]
[365769391,1749898238591,-1090.0,0.00021868,2]
[365769392,1749898238600,-500.0,0.00021899,4]
[365769393,1749898238610,-797.44308115,0.000219,6]
[365769394,1749898238619,-797.44308105,0.00022003,6]
[365769395,1749898238629,-182.0,0.00022045,2]
[365769396,1749898238639,-460.0,0.00022055,4]
[365769397,1749898238647,-473.13,0.00022055,4]
[365769398,1749898238656,-460.0,0.00022055,4]
[365769399,1749898238666,-460.0,0.00022055,2]
[365769400,1749898238675,-259.06349138,0.00022055,4]
[365769460,1749898240612,-200.93650862,0.00022055,4]
[365769462,1749898240622,-460.0,0.00022055,4]
[365769464,1749898240631,-460.0,0.00022055,4]
[365769466,1749898240641,-460.0,0.00022055,4]
[365769468,1749898240650,-393.09157571,0.00022055,4]
[365769539,1749898243369,-66.90842429,0.00022055,4]
[365769540,1749898243380,-460.0,0.00022055,4]
[365769541,1749898243391,-757.44,0.00022055,4]
[365769542,1749898243400,-1438.07,0.00022055,4]
[365769543,1749898243411,-460.0,0.00022055,4]
[365769544,1749898243420,-460.0,0.00022055,4]
[365769545,1749898243430,-207.78157571,0.00022055,4]
[365769574,1749899017175,356.684445,0.00013699,2]
[365769585,1749899226097,-951.13769293,0.000198,2]
[365769586,1749899226118,-1737.52300195,0.0002,2]
[365769588,1749899359172,-160.0,0.00019975,2]
[365769589,1749899359193,-1910.09502549,0.0002,2]
[365769590,1749899359222,-102.38197256,0.0002,2]
[365769591,1749899359243,-164.61023874,0.00020159,5]
[365769592,1749899359267,-181.23601267,0.00020159,5]
[365769593,1749899359290,-356.684445,0.00020187,2]
[365769594,1749899359310,-200.64589,0.00020316,2]
[365769595,1749899359332,-162.63,0.00020725,2]
[365769596,1749899359353,-300.0,0.00020725,2]
[365769597,1749899359375,-300.0,0.00020725,2]
[365769598,1749899359397,-228.08509138,0.00020726,2]
[365769643,1749899432532,-300.0,0.00020725,2]
[365769645,1749899432542,-24671.91490862,0.00020726,2]
[365769647,1749899432553,-180.008272,0.00020783,2]
[365769649,1749899432562,-162.74921302,0.00020995,2]
[365769651,1749899432571,-4385.4334479,0.00021095,2]
[365769653,1749899432580,-2906.80655232,0.00021095,2]
[365769655,1749899432590,-460.0,0.00021095,4]
[365769657,1749899432599,-460.0,0.00021095,4]
[365769659,1749899432610,-360.0,0.00021095,4]
[365769660,1749899432620,-410.0,0.00021095,4]
[365769662,1749899432630,-460.0,0.00021095,4]
[365769664,1749899432640,-400.0,0.00021095,4]
[365769666,1749899432650,-460.0,0.00021095,4]
[365769668,1749899432661,-460.0,0.00021095,4]
[365769670,1749899432670,-460.0,0.00021095,4]
[365769672,1749899432680,-201.27473128,0.00021095,4]
[365769674,1749899432689,-410.0,0.00021095,4]
[365769676,1749899432699,-460.0,0.00021095,4]
[365769678,1749899432709,-420.0,0.00021095,4]
[365769680,1749899432719,-400.0,0.00021095,4]
[365769682,1749899432728,-400.0,0.00021095,4]
[365769684,1749899432738,-400.0,0.00021095,4]
[365769687,1749899432747,-460.0,0.00021095,4]
[365769689,1749899432756,-390.0,0.00021095,4]
[365769690,1749899432766,-460.0,0.00021095,4]
[365769693,1749899432784,-460.0,0.00021095,4]
[365769696,1749899432796,-397.03109468,0.00021095,4]
[365769698,1749899432806,-452.80176838,0.00021095,4]
[365769700,1749899432817,-460.0,0.00021095,4]
[365769702,1749899432826,-460.0,0.00021095,4]
[365769704,1749899432836,-430.0,0.00021095,4]
[365769706,1749899432846,-460.0,0.00021095,4]
[365769708,1749899432855,-391.03113077,0.00021095,4]
[365769710,1749899432865,-460.0,0.00021095,4]
[365769729,1749899433031,-460.0,0.00021095,4]
[365769731,1749899433042,-460.0,0.00021095,4]
[365769734,1749899433053,-390.0,0.00021095,4]
[365769736,1749899433067,-300.7026197,0.00021095,4]
[365769738,1749899433077,-346.68,0.00021095,4]
[365769740,1749899433086,-158.21779657,0.00021095,4]
[365769742,1749899433095,-460.0,0.00021095,4]
[365769743,1749899433106,-380.0,0.00021095,4]
[365769745,1749899433115,-390.0,0.00021095,4]
[365769747,1749899433125,-402.16245737,0.00021095,4]
[365769749,1749899433136,-390.0,0.00021095,4]
[365769751,1749899433145,-460.0,0.00021095,4]
[365769753,1749899433155,-460.0,0.00021095,4]
[365769755,1749899433165,-460.0,0.00021095,4]
[365769757,1749899433174,-460.0,0.00021095,4]
[365769759,1749899433184,-460.0,0.00021095,4]
[365769761,1749899433194,-460.0,0.00021095,4]
[365769763,1749899433204,-460.0,0.00021095,4]
[365769765,1749899433214,-460.0,0.00021095,4]
[365769767,1749899433224,-400.0,0.00021095,4]
[365769769,1749899433235,-460.0,0.00021095,4]
[365769771,1749899433245,-460.0,0.00021095,4]
[365769773,1749899433255,-500.0,0.00021095,4]
[365769775,1749899433265,-460.0,0.00021095,4]
[365769777,1749899433275,-460.0,0.00021095,4]
[365769779,1749899433287,-460.0,0.00021095,4]
[365769781,1749899433296,-380.0,0.00021095,4]
[365769783,1749899433306,-380.0,0.00021095,4]
[365769785,1749899433317,-460.0,0.00021095,4]
[365769788,1749899433326,-320.0,0.00021095,4]
[365769790,1749899433336,-511.44090945,0.00021095,4]
[365769792,1749899433347,-380.0,0.00021095,4]
[365769794,1749899433356,-372.74742083,0.00021095,4]
[365769796,1749899433366,-460.0,0.00021095,4]
[365769798,1749899433376,-460.0,0.00021095,4]
[365769800,1749899433385,-460.0,0.00021095,4]
[365769802,1749899433395,-460.0,0.00021095,4]
[365769804,1749899433404,-460.0,0.00021095,4]
[365769806,1749899433414,-460.0,0.00021095,4]
[365769808,1749899433423,-337.85283087,0.00021095,4]
[365769810,1749899433434,-460.0,0.00021095,4]
[365769812,1749899433444,-349.69853494,0.00021095,4]
[365769814,1749899433453,-460.0,0.00021095,4]
[365769816,1749899433462,-370.28370918,0.00021095,2]
[365769818,1749899433471,-460.0,0.00021095,4]
[365769820,1749899433481,-460.0,0.00021095,4]
[365769822,1749899433491,-460.0,0.00021095,4]
[365769824,1749899433500,-380.0,0.00021095,4]
[365769826,1749899433510,-690.31,0.00021095,4]
[365769828,1749899433520,-460.0,0.00021095,4]
[365769830,1749899433530,-460.0,0.00021095,4]
[365769832,1749899433539,-385.91708517,0.00021095,4]
[365769834,1749899433549,-460.0,0.00021095,4]
[365769836,1749899433558,-460.0,0.00021095,4]
[365769837,1749899433568,-460.0,0.00021095,4]
[365769839,1749899433579,-460.0,0.00021095,4]
[365769841,1749899433589,-460.0,0.00021095,4]
[365769843,1749899433600,-460.0,0.00021095,4]
[365769844,1749899433610,-460.0,0.00021095,4]
[365769845,1749899433620,-460.0,0.00021095,4]
[365769846,1749899433629,-460.0,0.00021095,4]
[365769847,1749899433640,-390.0,0.00021095,4]
[365769848,1749899433650,-201.08793765,0.00021095,4]
[365769849,1749899433660,-460.0,0.00021095,4]
[365769850,1749899433670,-460.0,0.00021095,4]
[365769851,1749899433680,-460.0,0.00021095,4]
[365769852,1749899433690,-380.0,0.00021095,4]
[365769853,1749899433701,-460.0,0.00021095,4]
[365769854,1749899433711,-460.0,0.00021095,4]
[365769855,1749899433721,-460.0,0.00021095,4]
[365769856,1749899433732,-460.0,0.00021095,4]
[365769857,1749899433742,-460.0,0.00021095,4]
[365769858,1749899433752,-460.0,0.00021095,4]
[365769859,1749899433762,-460.0,0.00021095,4]
[365769860,1749899433772,-400.0,0.00021095,4]
[365769861,1749899433781,-460.0,0.00021095,4]
[365769862,1749899433791,-460.0,0.00021095,4]
[365769863,1749899433802,-460.0,0.00021095,4]
[365769864,1749899433815,-460.0,0.00021095,4]
[365769865,1749899433825,-548.65,0.00021095,4]
[365769866,1749899433835,-250.0,0.00021095,4]
[365769867,1749899433846,-460.0,0.00021095,4]
[365769868,1749899433856,-1777.82,0.00021095,4]
[365769869,1749899433866,-460.0,0.00021095,4]
[365769870,1749899433876,-460.0,0.00021095,4]
[365769871,1749899433887,-913.82,0.00021095,4]
[365769872,1749899433896,-460.0,0.00021095,4]
[365769873,1749899433907,-460.0,0.00021095,4]
[365769874,1749899433917,-460.0,0.00021095,4]
[365769875,1749899433928,-460.0,0.00021095,4]
[365769876,1749899433938,-460.0,0.00021095,4]
[365769877,1749899433956,-440.0,0.00021095,4]
[365769878,1749899433966,-405.72521844,0.00021095,4]
[365769879,1749899433976,-460.0,0.00021095,4]
[365769880,1749899433985,-195.66,0.00021095,4]
[365769881,1749899433995,-460.0,0.00021095,4]
[365769882,1749899434004,-420.0,0.00021095,4]
[365769883,1749899434014,-722.41,0.00021095,4]
[365769884,1749899434024,-390.0,0.00021095,4]
[365769885,1749899434034,-460.0,0.00021095,4]
[365769886,1749899434044,-460.0,0.00021095,4]
[365769887,1749899434055,-460.0,0.00021095,4]
[365769888,1749899434068,-460.0,0.00021095,4]
[365769889,1749899434078,-460.0,0.00021095,4]
[365769890,1749899434088,-460.0,0.00021095,4]
[365769891,1749899434098,-376.24098942,0.00021095,4]
[365769892,1749899434108,-460.0,0.00021095,4]
[365769893,1749899434118,-460.0,0.00021095,4]
[365769894,1749899434127,-500.0,0.00021095,4]
[365769895,1749899434138,-460.0,0.00021095,4]
[365769896,1749899434147,-266.9404286,0.00021368,2]
[365769897,1749899434157,-500.0,0.00021368,2]
[365769898,1749899434167,-500.0,0.00021368,2]
[365769899,1749899434177,-500.0,0.00021368,2]
[365769900,1749899434187,-500.0,0.00021368,2]
[365769901,1749899434197,-500.0,0.00021368,2]
[365769902,1749899434206,-500.0,0.00021368,2]
[365769903,1749899434216,-500.0,0.00021368,2]
[365769904,1749899434226,-500.0,0.00021368,2]
[365769905,1749899434235,-500.0,0.00021368,2]
[365769906,1749899434245,-500.0,0.00021368,2]
[365769907,1749899434257,-364.08177236,0.00021368,2]
[365769908,1749899434272,-500.0,0.00021368,2]
[365769909,1749899434282,-500.0,0.00021368,2]
[365769910,1749899434292,-254.85724065,0.00021368,2]
[365769911,1749899434302,-500.0,0.00021368,2]
[365769912,1749899434313,-500.0,0.00021368,2]
[365769913,1749899434323,-500.0,0.00021368,2]
[365769914,1749899434334,-500.0,0.00021368,2]
[365769915,1749899434344,-186.85830001,0.00021368,2]
[365769916,1749899434354,-500.0,0.00021368,2]
[365769917,1749899434364,-460.0,0.00021369,4]
[365769918,1749899434376,-328.04103966,0.00021369,4]
[365769919,1749899434391,-460.0,0.00021369,4]
[365769920,1749899434401,-350.0,0.00021369,4]
[365769921,1749899434411,-460.0,0.00021369,4]
[365769922,1749899434422,-460.0,0.00021369,4]
[365769923,1749899434431,-460.0,0.00021369,4]
[365769924,1749899434441,-440.0,0.00021369,4]
[365769925,1749899434451,-460.0,0.00021369,4]
[365769926,1749899434460,-460.0,0.00021369,4]
[365769927,1749899434470,-592.52,0.00021369,4]
[365769928,1749899434479,-460.0,0.00021369,4]
[365769929,1749899434489,-460.0,0.00021369,4]
[365769930,1749899434498,-460.0,0.00021369,4]
[365769931,1749899434507,-330.0,0.00021369,4]
[365769932,1749899434517,-460.0,0.00021369,4]
[365769933,1749899434526,-460.0,0.00021369,4]
[365769934,1749899434536,-600.0,0.00021369,4]
[365769935,1749899434545,-460.0,0.00021369,4]
[365769936,1749899434556,-460.0,0.00021369,4]
[365769937,1749899434565,-460.0,0.00021369,4]
[365769938,1749899434574,-460.0,0.00021369,4]
[365769939,1749899434584,-460.0,0.00021369,4]
[365769940,1749899434594,-460.0,0.00021369,4]
[365769941,1749899434604,-460.0,0.00021369,4]
[365769942,1749899434614,-460.0,0.00021369,4]
[365769943,1749899434623,-390.0,0.00021369,4]
[365769944,1749899434633,-460.0,0.00021369,4]
[365769945,1749899434643,-460.0,0.00021369,4]
[365769946,1749899434652,-690.31,0.00021369,4]
[365769947,1749899434662,-460.0,0.00021369,4]
[365769948,1749899434671,-460.0,0.00021369,4]
[365769949,1749899434681,-180.0,0.00021369,4]
[365769950,1749899434691,-460.0,0.00021369,4]
[365769951,1749899434700,-460.0,0.00021369,4]
[365769952,1749899434710,-549.94,0.00021369,4]
[365769953,1749899434719,-460.0,0.00021369,4]
[365769954,1749899434730,-460.0,0.00021369,4]
[365769955,1749899434741,-460.0,0.00021369,4]
[365769956,1749899434751,-460.0,0.00021369,4]
[365769957,1749899434761,-460.0,0.00021369,4]
[365769958,1749899434771,-460.0,0.00021369,4]
[365769959,1749899434781,-460.0,0.00021369,4]
[365769960,1749899434791,-460.0,0.00021369,4]
[365769961,1749899434801,-460.0,0.00021369,4]
[365769962,1749899434810,-460.0,0.00021369,4]
[365769963,1749899434820,-319.97143855,0.00021369,4]
[365769964,1749899434829,-460.0,0.00021369,4]
[365769965,1749899434839,-460.0,0.00021369,4]
[365769966,1749899434848,-548.65,0.00021369,4]
[365769967,1749899434857,-460.0,0.00021369,4]
[365769968,1749899434866,-1777.82,0.00021369,4]
[365769969,1749899434876,-913.82,0.00021369,4]
[365769970,1749899434885,-460.0,0.00021369,4]
[365769971,1749899434895,-460.0,0.00021369,4]
[365769972,1749899434904,-460.0,0.00021369,4]
[365769973,1749899434914,-460.0,0.00021369,4]
[365769974,1749899434923,-460.0,0.00021369,4]
[365769975,1749899434933,-460.0,0.00021369,4]
[365769976,1749899434943,-722.41,0.00021369,4]
[365769977,1749899434952,-460.0,0.00021369,4]
[365769978,1749899434962,-379.90100698,0.00021369,4]
[365769979,1749899434972,-460.0,0.00021369,4]
[365769980,1749899434981,-294.09,0.00021369,4]
[365769981,1749899434990,-460.0,0.00021369,4]
[365769982,1749899435000,-460.0,0.00021369,4]
[365769983,1749899435009,-460.0,0.00021369,4]
[365769984,1749899435019,-460.0,0.00021369,4]
[365769985,1749899435029,-290.0,0.00021369,4]
[365769986,1749899435039,-804.34,0.000214,2]
[365769987,1749899435048,-500.0,0.00021605,2]
[365769988,1749899435062,-1400.62,0.00021634,2]
[365769989,1749899435071,-162.74921296,0.00021638,2]
[365769990,1749899435082,-460.0,0.00021643,4]
[365769991,1749899435091,-460.0,0.00021643,4]
[365769992,1749899435102,-385.81083318,0.00021643,4]
[365769993,1749899435112,-534.84988418,0.00021643,4]
[365769994,1749899435122,-396.02726529,0.00021643,4]
[365769995,1749899435139,-63.97273471,0.00021643,4]
[365769996,1749899435150,-380.0,0.00021643,4]
[365769997,1749899435159,-460.0,0.00021643,4]
[365769998,1749899435169,-460.0,0.00021643,4]
[365769999,1749899435180,-460.0,0.00021643,4]
[365770000,1749899435190,-460.0,0.00021643,4]
[365770001,1749899435199,-295.21,0.00021643,4]
[365770002,1749899435209,-460.0,0.00021643,4]
[365770003,1749899435218,-460.0,0.00021643,4]
[365770004,1749899435228,-460.0,0.00021643,4]
[365770005,1749899435238,-387.50381283,0.00021643,4]
[365770006,1749899435247,-460.0,0.00021643,4]
[365770007,1749899435256,-460.0,0.00021643,4]
[365770008,1749899435267,-460.0,0.00021643,4]
[365770009,1749899435276,-460.0,0.00021643,4]
[365770010,1749899435286,-690.31,0.00021643,4]
[365770011,1749899435295,-460.0,0.00021643,4]
[365770012,1749899435305,-460.0,0.00021643,4]
[365770013,1749899435315,-460.0,0.00021643,4]
[365770014,1749899435325,-460.0,0.00021643,4]
[365770015,1749899435335,-460.0,0.00021643,4]
[365770016,1749899435345,-291.92651472,0.00021643,4]
[365770017,1749899435355,-460.0,0.00021643,4]
[365770018,1749899435365,-460.0,0.00021643,4]
[365770019,1749899435374,-460.0,0.00021643,4]
[365770020,1749899435384,-460.0,0.00021643,4]
[365770021,1749899435394,-460.0,0.00021643,4]
[365770022,1749899435403,-460.0,0.00021643,4]
[365770023,1749899435413,-460.0,0.00021643,4]
[365770024,1749899435422,-460.0,0.00021643,4]
[365770025,1749899435432,-460.0,0.00021643,4]
[365770026,1749899435441,-116.57693774,0.00021643,4]
[365770027,1749899435550,-343.42306226,0.00021643,4]
[365770028,1749899435560,-548.65,0.00021643,4]
[365770029,1749899435570,-460.0,0.00021643,4]
[365770030,1749899435579,-993.63453068,0.00021643,4]
[365770031,1749899438418,-460.0,0.00021095,4]
[365770032,1749899438428,-400.0,0.00021095,4]
[365770033,1749899438438,-325.26,0.00021358,10]
[365770034,1749899438447,-784.18546932,0.00021643,4]
[365770035,1749899438456,-183.33743068,0.00021643,4]
[365770036,1749899438577,-730.48256932,0.00021643,4]
[365770038,1749899438587,-460.0,0.00021643,4]
[365770040,1749899438597,-460.0,0.00021643,4]
[365770041,1749899438606,-460.0,0.00021643,4]
[365770042,1749899438616,-460.0,0.00021643,4]
[365770043,1749899438625,-460.0,0.00021643,4]
[365770044,1749899438635,-722.41,0.00021643,4]
[365770045,1749899438644,-460.0,0.00021643,4]
[365770046,1749899438653,-460.0,0.00021643,4]
[365770047,1749899438663,-460.0,0.00021643,4]
[365770048,1749899438672,-460.0,0.00021643,4]
[365770049,1749899438681,-564.67572038,0.00021643,4]
[365770050,1749899438690,-400.0,0.00021781,4]
[365770051,1749899438700,-460.0,0.00021781,4]
[365770052,1749899438709,-460.0,0.00021781,4]
[365770053,1749899438718,-360.0,0.00021781,4]
[365770054,1749899438728,-440.0,0.00021781,4]
[365770055,1749899438737,-380.02280269,0.00021781,4]
[365770056,1749899438746,-420.0,0.00021781,4]
[365770057,1749899438757,-460.0,0.00021781,4]
[365770058,1749899438766,-247.97760362,0.00021781,4]
[365770059,1749899438775,-460.0,0.00021781,4]
[365770060,1749899438785,-283.40367879,0.00021781,4]
[365770061,1749899438795,-460.0,0.00021781,4]
[365770062,1749899438804,-380.0,0.00021781,4]
[365770063,1749899438813,-267.75104844,0.00021781,4]
[365770064,1749899438823,-390.89750212,0.00021781,4]
[365770066,1749899438833,-390.0,0.00021781,4]
[365770068,1749899438842,-213.28201367,0.000218,2]
[365770069,1749899438851,-835.41710878,0.000218,2]
[365770070,1749899438860,-424.40141186,0.000218,2]
[365770071,1749899438870,-12533.30537164,0.000218,2]
[365770072,1749899438879,-160.0,0.000218,2]
[365770073,1749899438889,-777.48734875,0.00021817,2]
[365770074,1749899438904,-160.0,0.00021831,2]
[365770075,1749899438913,-765.37316551,0.000219,6]
[365770076,1749899438923,-460.0,0.00021917,4]
[365770077,1749899438932,-460.0,0.00021917,4]
[365770078,1749899438941,-460.0,0.00021917,4]
[365770079,1749899438950,-379.53405183,0.00021917,4]
[365770080,1749899438960,-690.31,0.00021917,4]
[365770081,1749899438969,-460.0,0.00021917,4]
[365770082,1749899438979,-460.0,0.00021917,4]
[365770083,1749899438988,-460.0,0.00021917,4]
[365770084,1749899438997,-338.15871805,0.00021917,4]
[365770085,1749899439006,-373.06880565,0.00021917,4]
[365770086,1749899439016,-460.0,0.00021917,4]
[365770087,1749899439026,-460.0,0.00021917,4]
[365770088,1749899439035,-460.0,0.00021917,4]
[365770089,1749899439046,-460.0,0.00021917,4]
[365770090,1749899439055,-460.0,0.00021917,4]
[365770091,1749899439065,-403.13753151,0.00021917,4]
[365770092,1749899439074,-460.0,0.00021917,4]
[365770093,1749899439087,-460.0,0.00021917,4]
[365770094,1749899439096,-548.65,0.00021917,4]
[365770095,1749899439106,-460.0,0.00021917,4]
[365770096,1749899439115,-1777.82,0.00021917,4]
[365770097,1749899439126,-913.82,0.00021917,4]
[365770098,1749899439135,-460.0,0.00021917,4]
[365770099,1749899439144,-460.0,0.00021917,4]
[365770100,1749899439154,-460.0,0.00021917,4]
[365770101,1749899439165,-460.0,0.00021917,4]
[365770102,1749899439177,-722.41,0.00021917,4]
[365770103,1749899439188,-460.0,0.00021917,4]
[365770104,1749899439198,-460.0,0.00021917,4]
[365770105,1749899439207,-250.0,0.00021962,2]
[365770106,1749899439216,-765.3731654,0.00022003,6]
[365770107,1749899439225,-360.0,0.00022055,4]
[365770108,1749899439234,-765.3731654,0.00022107,6]
[365770109,1749899439243,-1000.0,0.00022153,2]
[365770110,1749899439254,-460.0,0.00022191,4]
[365770111,1749899439263,-460.0,0.00022191,4]
[365770112,1749899439273,-690.31,0.00022191,4]
[365770113,1749899439282,-460.0,0.00022191,4]
[365770114,1749899439291,-460.0,0.00022191,4]
[365770115,1749899439301,-460.0,0.00022191,4]
[365770116,1749899439312,-460.0,0.00022191,4]
[365770117,1749899439322,-460.0,0.00022191,4]
[365770118,1749899439331,-548.65,0.00022191,4]
[365770119,1749899439341,-1777.82,0.00022191,4]
[365770120,1749899439350,-913.82,0.00022191,4]
[365770121,1749899439359,-460.0,0.00022191,4]
[365770122,1749899439368,-460.0,0.00022191,4]
[365770123,1749899439378,-460.0,0.00022191,4]
[365770124,1749899439390,-460.0,0.00022191,4]
[365770125,1749899439399,-722.41,0.00022191,4]
[365770126,1749899439410,-460.0,0.00022191,4]